fUST/lending_fUST_20250225
["ID","MTS","AMOUNT","RATE_DAILY","PERIOD"]
[354357357,1740441063308,-1666.87,0.00032876,2]
[354357358,1740441063319,-1666.87,0.00032876,2]
[354357359,1740441063333,-1666.87,0.00032876,2]
[354357360,1740441063344,-1666.87,0.00032876,2]
[354357361,1740441063354,-1666.87,0.00032876,2]
[354357362,1740441063365,-1666.87,0.00032876,2]
[354357363,1740441063376,-1666.87,0.00032876,2]
[354357364,1740441063386,-1666.87,0.00032876,2]
[354357365,1740441063396,-1666.87,0.00032876,2]
[354357366,1740441063407,-1666.87,0.00032876,2]
[354357367,1740441063417,-1666.87,0.00032876,2]
[354357368,1740441063428,-1666.87,0.00032876,2]
[354357369,1740441063439,-1666.87,0.00032876,2]
[354357370,1740441063449,-1666.87,0.00032876,2]
[354357371,1740441063460,-1666.87,0.00032876,2]
[354357372,1740441063471,-1666.87,0.00032876,2]
[354357373,1740441063481,-1666.87,0.00032876,2]
[354357374,1740441063492,-1666.87406139,0.00032876,2]
[354357375,1740441063503,-500.0,0.00032876,2]
[354357376,1740441063513,-500.0,0.00032876,2]
[354357377,1740441063524,-500.0,0.00032876,2]
[354357378,1740441063534,-500.0,0.00032876,2]
[354357379,1740441063544,-500.0,0.00032876,2]
[354357380,1740441063554,-500.0,0.00032876,2]
[354357381,1740441063564,-500.0,0.00032876,2]
[354357382,1740441063574,-500.0,0.00032876,2]
[354357383,1740441063587,-500.0,0.00032876,2]
[354357384,1740441063597,-500.0,0.00032876,2]
[354357385,1740441063607,-500.0,0.00032876,2]
[354357386,1740441063617,-622.3,0.00032876,2]
[354357387,1740441063629,-173.4498212,0.00033,10]
[354357388,1740441063640,-179.44014982,0.00033,120]
[354357389,1740441063651,-265.0,0.00033,2]
[354357390,1740441063662,-265.0,0.00033,2]
[354357391,1740441063672,-200.0,0.00033068,120]
[354357392,1740441063683,-1700.0,0.00033288,60]
[354357393,1740441063693,-372.89274,0.00033598,2]
[354357394,1740441063704,-686.56,0.00033972,28]
[354357395,1740441063715,-1000.0,0.00034,120]
[354357396,1740441063725,-2847.31,0.000342,30]
[354357397,1740441063736,-11167.87,0.000342,120]
[354357398,1740441063746,-1700.0,0.00034384,60]
[354357399,1740441063755,-500.0,0.000344,120]
[354357400,1740441063765,-200.0,0.00034575,120]
[354357401,1740441063777,-1314.97481851,0.00034728,12]
[354357402,1740441063788,-3107.00553442,0.0003487,4]
[354357403,1740441063798,-13058.31220113,0.0003499,30]
[354357404,1740441063813,-4604.71986523,0.0003499,30]
[354357405,1740441063855,-18441.89620399,0.0003499,30]
[354357406,1740441063872,-734.94574139,0.0003499,30]
[354357407,1740441063886,-3160.12598826,0.0003499,30]
[354357408,1740441063898,-10495.53381869,0.00035,2]
[354357409,1740441063909,-499.77826235,0.00035,2]
[354357410,1740441063921,-7272.0,0.00035,120]
[354357411,1740441063932,-5795.70250048,0.00035,14]
[354357412,1740441063943,-8887.8766754,0.00035,120]
[354357413,1740441063953,-7197.61505993,0.00035,120]
[354357414,1740441063963,-77636.45091823,0.00035,120]
[354357415,1740441063973,-200.0,0.00035,120]
[354357416,1740441063983,-200.0,0.00035,120]
[354357417,1740441063993,-200.0,0.00035,120]
[354357418,1740441064003,-200.0,0.00035,120]
[354357419,1740441064013,-200.0,0.00035,120]
[354357420,1740441064023,-200.0,0.00035,120]
[354357421,1740441064033,-200.0,0.00035,120]
[354357422,1740441064043,-232.89254,0.00035,120]
[354357423,1740441064054,-100000.0,0.00035,30]
[354357424,1740441064064,-823.73,0.00035,60]
[354357425,1740441064075,-686.56,0.00035342,30]
[354357426,1740441064087,-1700.0,0.0003548,60]
[354357427,1740441064097,-278.716261,0.00035977,2]
[354357428,1740441064108,-7701.7530857,0.00036,2]
[354357429,1740441064118,-1000.0,0.00036,120]
[354357430,1740441064128,-265.0,0.00036,2]
[354357431,1740441064138,-265.0,0.00036,2]
[354357432,1740441064148,-265.0,0.00036,2]
[354357433,1740441064158,-200.0,0.00036082,120]
[354357434,1740441064168,-200.37309997,0.0003621,2]
[354357435,1740441064178,-260.62631336,0.0003624,2]
[354357436,1740441064189,-1700.0,0.00036576,60]
[354357437,1740441064199,-686.56,0.00036712,32]
[354357438,1740441064209,-252.0965,0.00037179,5]
[354357439,1740441064219,-200.0,0.00037589,120]
[354357440,1740441064230,-1700.0,0.00037672,60]
[354357441,1740441064240,-50000.0,0.00038,120]
[354357442,1740441064251,-202.74162674,0.00038,30]
[354357443,1740441064261,-1000.0,0.00038,120]
[354357444,1740441064270,-14232.54921719,0.00038,120]
[354357445,1740441064340,-500.0,0.00013698,2]
[354357446,1740441064350,-420.0,0.0001378,2]
[354357447,1740441064362,-80.0,0.0001378,2]
[354357448,1740441064372,-500.0,0.00013863,2]
[354357449,1740441064383,-500.0,0.00014027,2]
[354357450,1740441064392,-500.0,0.00014109,2]
[354357451,1740441064402,-500.0,0.00014191,2]
[354357452,1740441064535,-500.0,0.00014273,2]
[354357453,1740441064570,-218.82,0.00014356,2]
[354357454,1740441064584,-20171.18000001,0.00038,120]
[354357455,1740441064597,-4600.0,0.00038,120]
[354357456,1740441064610,-494.2781807,0.00038,120]
[354357457,1740441064623,-10501.9926021,0.00038,120]
[354357458,1740441064633,-686.56,0.00038082,34]
[354357459,1740441064643,-180855.52588173,0.00038398,120]
[354357460,1740441064653,-496.364,0.00038511,51]
[354357461,1740441064664,-150.5,0.0003897,120]
[354357462,1740441064674,-543.0,0.0003897,120]
[354357463,1740441064684,-150.5,0.0003898,120]
[354357464,1740441064694,-543.0,0.0003898,120]
[354357465,1740441064704,-273.81,0.0003898,120]
[354357466,1740441064714,-228.41,0.0003898,120]
[354357467,1740441064723,-150.5,0.0003899,120]
[354357468,1740441064733,-543.0,0.0003899,120]
[354357469,1740441064744,-150.5,0.0003899,120]
[354357470,1740441064753,-150.5,0.0003899,120]
[354357471,1740441064764,-5236.69011009,0.00039,120]
[354357472,1740441064775,-265.0,0.00039,2]
[354357473,1740441064785,-265.0,0.00039,2]
[354357474,1740441064796,-265.0,0.00039,2]
[354357475,1740441064807,-200.0,0.00039096,120]
[354357476,1740441064818,-686.56,0.00039452,120]
[354357477,1740441064833,-151.0,0.00039616,120]
[354357478,1740441064844,-142272.42976191,0.0003984,120]
[354357479,1740441064855,-530.77670202,0.0004,10]
[354357480,1740441064868,-1000.0,0.0004,120]
[354357481,1740441064881,-226.19484734,0.0004,120]
[354357482,1740441064894,-126124.42431862,0.0004,120]
[354357483,1740441064905,-2452.65222068,0.0004,30]
[354357484,1740441064916,-14000.0,0.0004,4]
[354357485,1740441064928,-4000.0,0.0004,120]
[354357486,1740441064939,-200.0,0.0004,30]
[354357487,1740441064949,-3403.0,0.0004,120]
[354357488,1740441064959,-647.21821256,0.0004,120]
[354357489,1740441064969,-10837.03331238,0.0004,120]
[354357490,1740441064980,-1380.618799,0.0004,120]
[354357491,1740441064990,-16689.86925544,0.0004,120]
[354357492,1740441065000,-19601.91606613,0.0004,120]
[354357493,1740441065010,-33849.68569373,0.00040379,5]
[354357494,1740441065020,-65264.67511726,0.0004038,120]
[354357495,1740441065030,-200.0,0.00040603,120]
[354357496,1740441065041,-372.89274,0.00040808,2]
[354357497,1740441065052,-686.56,0.00040821,120]
[354357498,1740441065062,-85952.55748116,0.00040999,5]
[354357499,1740441065072,-1000.0,0.00040999,120]
[354357500,1740441065084,-200.0,0.00041,120]
[354357501,1740441065095,-152.0,0.00041041,31]
[354357502,1740441065104,-152.0,0.00041041,31]
[354357503,1740441065114,-152.0,0.00041041,31]
[354357504,1740441065124,-152.0,0.00041041,31]
[354357505,1740441065134,-500.0,0.00041095,2]
[354357506,1740441065144,-502.16564088,0.00041095,2]
[354357507,1740441065154,-10000.0,0.00041096,20]
[354357508,1740441065164,-396.58191561,0.0004198,2]
[354357509,1740441065174,-200.0,0.00042,120]
[354357510,1740441065184,-2847.31,0.00042,30]
[354357511,1740441065194,-23182.06,0.00042,30]
[354357512,1740441065205,-2065.84,0.00042,30]
[354357513,1740441065215,-265.0,0.00042,2]
[354357514,1740441065225,-265.0,0.00042,2]
[354357515,1740441065235,-265.0,0.00042,2]
[354357516,1740441065246,-200.0,0.0004211,120]
[354357517,1740441065256,-686.56,0.00042191,120]
[354357518,1740441065267,-1707.36780174,0.000424,120]
[354357519,1740441065277,-278.716261,0.00042711,2]
[354357520,1740441065287,-200.0,0.00043,120]
[354357521,1740441065298,-3565.28444563,0.00043,120]
[354357522,1740441065308,-11167.87,0.000431,120]
[354357523,1740441065318,-510.81217002,0.00043342,30]
[354357524,1740441065331,-686.56,0.00043561,120]
[354357525,1740441065342,-200.0,0.00043616,120]
[354357526,1740441065353,-480.0,0.00043836,4]
[354357527,1740441065365,-480.0,0.00043836,4]
[354357528,1740441065378,-550.0,0.00044,60]
[354357529,1740441065389,-300.0,0.00044,120]
[354357530,1740441065402,-500.0,0.000443,120]
[354357531,1740441065414,-686.56,0.00044931,120]
[354357532,1740441065425,-1000.0,0.00044999,120]
[354357533,1740441065436,-292.79,0.00044999,7]
[354357534,1740441065447,-200.0,0.00045,120]
[354357535,1740441065468,-843.82219093,0.00045,20]
[354357536,1740441065490,-700.05057052,0.00045,3]
[354357537,1740441065506,-553.27090062,0.00045,30]
[354357538,1740441065518,-265.0,0.00045,2]
[354357539,1740441065530,-265.0,0.00045,2]
[354357540,1740441065541,-200.0,0.00045123,120]
[354357541,1740441065553,-300.0,0.00046,120]
[354357542,1740441065565,-1334.56,0.00046,30]
[354357543,1740441065581,-686.56,0.00046301,120]
[354357544,1740441065592,-200.0,0.0004663,120]
[354357545,1740441065603,-153.0,0.00046766,2]
[354357546,1740441065615,-153.0,0.00046769,2]
[354357547,1740441065627,-153.0,0.00046769,2]
[354357548,1740441065637,-153.0,0.00046769,2]
[354357549,1740441065649,-153.0,0.00046769,2]
[354357550,1740441065660,-153.0,0.00046769,2]
[354357551,1740441065671,-153.0,0.00046769,2]
[354357552,1740441065682,-153.0,0.00046769,2]
[354357553,1740441065692,-153.0,0.00046769,2]
[354357554,1740441065703,-153.0,0.00046769,2]
[354357555,1740441065714,-153.0,0.00046769,2]
[354357556,1740441065725,-153.0,0.00046769,2]
[354357557,1740441065736,-153.0,0.00046812,2]
[354357558,1740441065747,-153.0,0.00046815,2]
[354357559,1740441065758,-153.0,0.00046815,2]
[354357560,1740441065770,-153.0,0.00046815,2]
[354357561,1740441065781,-153.0,0.00046815,2]
[354357562,1740441065793,-153.0,0.00046815,2]
[354357563,1740441065804,-153.0,0.00046815,2]
[354357564,1740441065816,-153.0,0.00046815,2]
[354357565,1740441065830,-153.0,0.00046815,2]
[354357566,1740441065841,-153.0,0.00046815,2]
[354357567,1740441065853,-153.0,0.00046815,2]
[354357568,1740441065864,-153.0,0.00046815,2]
[354357569,1740441065880,-151.0,0.00046822,120]
[354357570,1740441065891,-153.0,0.00046837,2]
[354357571,1740441065902,-153.0,0.00046837,2]
[354357572,1740441065913,-153.0,0.00046837,2]
[354357573,1740441065923,-153.0,0.00046837,2]
[354357574,1740441065934,-153.0,0.00046837,2]
[354357575,1740441065944,-153.0,0.00046837,2]
[354357576,1740441065954,-153.0,0.00046837,2]
[354357577,1740441065965,-153.0,0.00046837,2]
[354357578,1740441065975,-153.0,0.00046837,2]
[354357579,1740441065984,-153.0,0.00046837,2]
[354357580,1740441065994,-153.0,0.00046837,2]
[354357581,1740441066004,-25455.26,0.00047,2]
[354357582,1740441066014,-686.68335299,0.00047671,120]
[354357583,1740441066024,-150.5,0.0004798,120]
[354357584,1740441066034,-543.0,0.0004798,120]
[354357585,1740441066044,-150.5,0.0004799,120]
[354357586,1740441066054,-543.0,0.0004799,120]
[354357587,1740441066064,-300.0,0.00048,120]
[354357588,1740441066075,-700.05057052,0.00048,3]
[354357589,1740441066088,-500.61330291,0.00048,120]
[354357590,1740441066099,-265.0,0.00048,2]
[354357591,1740441066109,-372.89274,0.00048017,2]
[354357592,1740441066119,-200.0,0.00048137,120]
[354357593,1740441066129,-151.0,0.00048398,120]
[354357594,1740441066138,-527444.07917728,0.00048398,120]
[354357595,1740441066148,-252.0965,0.00048664,120]
[354357596,1740441066158,-331.29439926,0.00049,120]
[354357597,1740441066168,-200000.0,0.00049,120]
[354357598,1740441066177,-500.0,0.000494,120]
[354357599,1740441066187,-278.716261,0.00049445,2]
[354357600,1740441066197,-200.0,0.00049644,120]
[354357601,1740441066207,-1000.0,0.00049999,120]
[354357602,1740441066217,-300.0,0.0005,120]
[354357603,1740441066226,-524.21182282,0.0005,10]
[354357604,1740441066235,-215.11611581,0.0005,20]
[354357605,1740441066245,-269.79508483,0.0005,120]
[354357606,1740441066254,-700.05057052,0.0005,3]
[354357607,1740441066264,-410.0616388,0.0005,2]
[354357608,1740441066273,-2080.74414142,0.0005,120]
[354357609,1740441066283,-553.27090062,0.0005,30]
[354357610,1740441066292,-3506.60330054,0.0005,120]
[354357611,1740441066301,-533.38636397,0.0005,120]
[354357612,1740441066312,-530.77670202,0.0005,10]
[354357613,1740441066321,-528.79391833,0.0005,120]
[354357614,1740441066334,-404.82503521,0.0005,120]
[354357615,1740441066344,-811.9559,0.0005,30]
[354357616,1740441066353,-267.0,0.00051,120]
[354357617,1740441066363,-3000.0,0.00051,85]
[354357618,1740441066372,-3000.0,0.0005101,85]
[354357619,1740441066381,-3000.0,0.0005102,85]
[354357620,1740441066390,-3000.0,0.0005103,85]
[354357621,1740441066400,-3000.0,0.0005104,85]
[354357622,1740441066409,-3000.0,0.0005105,85]
[354357623,1740441066419,-3000.0,0.0005106,85]
[354357624,1740441066428,-5702.582465,0.0005107,85]
[354357625,1740441066437,-200.0,0.00051151,120]
[354357626,1740441066447,-150.0,0.00052,120]
[354357627,1740441066456,-700.05057052,0.00052,3]
[354357628,1740441066465,-500.0,0.000524,120]
[354357629,1740441066474,-1000.0,0.000525,2]
[354357630,1740441066484,-200.0,0.00052658,120]
[354357631,1740441066493,-200.0,0.00053,120]
[354357632,1740441066502,-700.05057052,0.00053,3]
[354357633,1740441066511,-1549.38,0.000537,120]
[354357634,1740441066521,-150.0,0.00054,120]
[354357635,1740441066531,-1094.62694351,0.00054,120]
[354357636,1740441066540,-204.31680217,0.00054,120]
[354357637,1740441066550,-151.0,0.00054027,120]
[354357638,1740441066559,-200.0,0.00054164,120]
[354357639,1740441066568,-152.68281207,0.00054794,120]
[354357640,1740441066578,-1000.0,0.00054999,120]
[354357641,1740441066587,-200.0,0.00055,120]
[354357642,1740441066596,-3097.1244886,0.00055,120]
[354357643,1740441066605,-1000.0,0.00055,120]
[354357644,1740441066614,-535.66709546,0.00055,120]
[354357645,1740441066624,-65264.67511726,0.0005514,120]
[354357646,1740441066634,-372.89274,0.00055227,2]
[354357647,1740441066643,-200.0,0.00055671,120]
[354357648,1740441066652,-278.716261,0.00056179,2]
[354357649,1740441066661,-1000.0,0.00056649,30]
[354357650,1740441066671,-1000.0,0.00056649,30]
[354357651,1740441066680,-1873.70001593,0.00057,120]
[354357652,1740441066689,-200.0,0.00057,120]
[354357653,1740441066699,-200.0,0.00057178,120]
[354357654,1740441066708,-150.0,0.00058,120]
[354357655,1740441066718,-2847.31,0.00058,30]
[354357656,1740441066728,-200.0,0.00058685,120]
[354357657,1740441066737,-23182.06,0.00059,30]
[354357658,1740441066746,-416.87,0.0005949,30]
[354357659,1740441066854,-3594.27412055,0.000599,120]
[354357660,1740441066876,-2000.0,0.0006,120]
[354357661,1740441066887,-695.55374925,0.0006,12]
[354357662,1740441066897,-167.43462524,0.0006,120]
[354357663,1740441066907,-530.77670202,0.0006,10]
[354357664,1740441066918,-196.87561305,0.0006,30]
[354357665,1740441066927,-515.0908361,0.0006,120]
[354357666,1740441066938,-1000.0,0.0006,30]
[354357667,1740441066948,-200.0,0.00060192,120]
[354357668,1740441066957,-200.0,0.00061,120]
[354357669,1740441066967,-151.0,0.00061233,120]
[354357670,1740441066977,-200.0,0.00061699,120]
[354357671,1740441066987,-500.0,0.00062,120]
[354357672,1740441066996,-496.365,0.0006234,120]
[354357673,1740441067006,-372.89274,0.00062437,120]
[354357674,1740441067015,-278.716261,0.00062913,2]
[354357675,1740441067025,-200.0,0.00063,120]
[354357676,1740441067034,-200.0,0.00063205,120]
[354357677,1740441067044,-150.0,0.00064,120]
[354357678,1740441067054,-156.16346601,0.00064,120]
[354357679,1740441067063,-200.0,0.00064712,120]
[354357680,1740441067073,-500.0,0.00065,120]
[354357681,1740441067084,-1142.89854703,0.00065,120]
[354357682,1740441067094,-530.77670202,0.00065,10]
[354357683,1740441067103,-500.0,0.00065,60]
[354357684,1740441067113,-25455.26,0.00065,2]
[354357685,1740441067122,-200.0,0.00066,120]
[354357686,1740441067132,-200.0,0.00066219,120]
[354357687,1740441067142,-200.0,0.00067726,120]
[354357688,1740441067151,-200.0,0.00068,120]
[354357689,1740441067161,-151.0,0.00068438,120]
[354357690,1740441067171,-5859.86,0.00068493,10]
[354357691,1740441067181,-1000.0,0.000685,2]
[354357692,1740441067191,-3000.0,0.00069,120]
[354357693,1740441067200,-3000.0,0.0006901,120]
[354357694,1740441067211,-3000.0,0.0006902,120]
[354357695,1740441067220,-3000.0,0.0006903,120]
[354357696,1740441067230,-4021.549479,0.0006904,120]
[354357697,1740441067240,-200.0,0.00069233,120]
[354357698,1740441067250,-278.716261,0.00069647,120]
[354357699,1740441067259,-372.89274,0.00069647,120]
[354357700,1740441067269,-65264.67511726,0.000699,120]
[354357701,1740441067279,-300.0,0.0007,120]
[354357702,1740441067288,-100000.0,0.0007,30]
[354357703,1740441067298,-2000.0,0.0007,120]
[354357704,1740441067308,-200.0,0.0007074,120]
[354357705,1740441067318,-200.0,0.00072247,120]
[354357706,1740441067327,-200.0,0.00073753,120]
[354357707,1740441067337,-150.0,0.00074,120]
[354357708,1740441067347,-2847.31,0.00074,30]
[354357709,1740441067358,-1000.0,0.00074399,120]
[354357710,1740441067368,-2000.0,0.00075,120]
[354357711,1740441067377,-440.0,0.00075166,120]
[354357712,1740441067387,-440.0,0.00075166,120]
[354357713,1740441067396,-200.0,0.0007526,120]
[354357714,1740441067405,-151.0,0.00075644,120]
[354357715,1740441067415,-278.716261,0.00076381,120]
[354357716,1740441067424,-200.0,0.00076767,120]
[354357717,1740441067433,-372.89274,0.00076857,120]
[354357718,1740441067443,-300.0,0.00078,120]
[354357719,1740441067452,-200.0,0.00078274,120]
[354357720,1740441067462,-544.21,0.0007898,120]
[354357721,1740441067471,-250.93,0.0007899,120]
[354357722,1740441067480,-543.0,0.0007899,120]
[354357723,1740441067489,-23182.06,0.00079,30]
[354357724,1740441067499,-200.0,0.00079781,120]
[354357725,1740441067508,-670.10654094,0.0008,50]
[354357726,1740441067517,-200.0,0.0008,120]
[354357727,1740441067526,-2016.10171169,0.0008,120]
[354357728,1740441067535,-200.0,0.0008,120]
[354357729,1740441067545,-1780.172164,0.0008,120]
[354357730,1740441067554,-200.0,0.00081288,120]
[354357731,1740441067563,-200.0,0.00082795,120]
[354357732,1740441067573,-151.0,0.00082849,120]
[354357733,1740441067585,-278.716261,0.00083114,120]
[354357734,1740441067595,-372.89274,0.00084066,120]
[354357735,1740441067604,-1000.0,0.0008425,120]
[354357736,1740441067613,-200.0,0.00084301,120]
[354357737,1740441067623,-25455.26,0.00085,2]
[354357738,1740441067632,-2001.38885121,0.00085,120]
[354357739,1740441067641,-200.0,0.00085808,120]
[354357740,1740441067651,-496.364,0.0008617,120]
[354357741,1740441067660,-200.0,0.00087315,120]
[354357742,1740441067670,-200.0,0.00088822,120]
[354357743,1740441067680,-278.716261,0.00089848,120]
[354357744,1740441067690,-150.0,0.0009,60]
[354357745,1740441067699,-200.0,0.0009,120]
[354357746,1740441067709,-2847.31,0.0009,60]
[354357747,1740441067719,-269.0,0.00090055,120]
[354357748,1740441067729,-242.0,0.00090329,120]
[354357749,1740441067739,-372.89274,0.00091276,120]
[354357750,1740441067749,-6136.73286378,0.0009488,60]
[354357751,1740441067758,-278.716261,0.00096582,120]
[354357752,1740441067768,-1000.0,0.00097399,120]
[354357753,1740441067778,-7054.95652559,0.000975,30]
[354357754,1740441067790,-372.89274,0.00098486,120]
[354357755,1740441067800,-429.5,0.00099609,120]
[354357756,1740441067809,-1132.98543138,0.001,120]
[354357757,1740441067820,-1000.0,0.001,2]
[354357758,1740441067830,-152.0,0.001,120]
[354357759,1740441067841,-200.0,0.001,120]
[354357760,1740441067851,-1334.56,0.001,60]
[354357761,1740441067861,-200.0,0.001,120]
[354357762,1740441067874,-151.0,0.001,120]
[354357763,1740441067884,-278.716261,0.00103316,120]
[354357764,1740441067893,-372.89274,0.00105696,120]
[354357765,1740441067902,-380.0,0.00108175,120]
[354357766,1740441067911,-380.0,0.00108175,120]
[354357767,1740441067922,-496.365,0.0011,120]
[354357768,1740441067932,-278.716261,0.0011005,120]
[354357769,1740441067942,-372.89274,0.00112906,120]
[354357770,1740441067952,-278.716261,0.00116784,120]
[354357771,1740441067961,-1000.0,0.0011822,120]
[354357772,1740441067971,-372.89274,0.00120115,120]
[354357773,1740441067980,-278.716261,0.00123518,120]
[354357774,1740441067990,-372.89274,0.00127325,120]
[354357775,1740441068000,-2626.8,0.0012755,99]
[354357776,1740441068009,-500.0,0.0013,2]
[354357777,1740441068019,-278.716261,0.00130252,120]
[354357778,1740441068029,-372.89274,0.00134535,120]
[354357779,1740441068039,-336.92804512,0.00136,90]
[354357780,1740441068049,-500.0,0.00136986,2]
[354357781,1740441068059,-500.0,0.00136986,2]
[354357782,1740441068068,-500.0,0.00136986,2]
[354357783,1740441068078,-500.0,0.00136986,2]
[354357784,1740441068088,-500.0,0.00136986,2]
[354357785,1740441068097,-500.0,0.00136986,2]
[354357786,1740441068107,-500.0,0.00136986,2]
[354357787,1740441068117,-500.0,0.00136986,2]
[354357788,1740441068126,-500.0,0.00136986,2]
[354357789,1740441068135,-455.99155987,0.00136986,2]
[354357790,1740441068145,-278.716261,0.00136986,120]
[354357791,1740441068155,-372.89274,0.00141745,120]
[354357792,1740441068165,-300.0,0.00142323,120]
[354357793,1740441068174,-300.0,0.00142323,120]
[354357794,1740441068183,-372.89274,0.00148955,120]
[354357795,1740441068193,-119427.94656405,0.0015,120]
[354357796,1740441068203,-151.0,0.0015,120]
[354357797,1740441068212,-278.646636,0.0015,30]
[354357798,1740441068222,-221.347623,0.0015,120]
[354357799,1740441068231,-221.347623,0.0015,120]
[354357800,1740441068241,-196.259343,0.00156164,120]
[354357801,1740441068250,-372.89274,0.00156164,120]
[354357802,1740441068260,-1000.0,0.0016731,120]
[354357803,1740441068269,-200.0,0.00177345,120]
[354357804,1740441068278,-200.0,0.00177345,120]
[354357805,1740441068287,-10000.0,0.00188,7]
[354357806,1740441068297,-151.0,0.00188,120]
[354357807,1740441068306,-89038.7234858,0.00197695,60]
[354357808,1740441068315,-291.70934,0.0019953,120]
[354357809,1740441068325,-291.70934,0.0019953,120]
[354357810,1740441068336,-1000.0,0.002,120]
[354357811,1740441068345,-200.0,0.002,120]
[354357812,1740441068354,-152.0,0.002,120]
[354357813,1740441068364,-555.62190681,0.002,120]
[354357814,1740441068373,-3810.01436314,0.002,2]
[354357815,1740441068383,-1809.3344,0.00201,92]
[354357816,1740441068393,-150.1,0.00213079,120]
[354357817,1740441068402,-150.1,0.00213079,120]
[354357818,1740441068411,-510.81217002,0.0022,30]
[354357819,1740441068421,-500.0,0.0022,60]
[354357820,1740441068430,-266.02,0.0022,20]
[354357821,1740441068439,-1000.0,0.0022127,120]
[354357822,1740441068449,-150.1,0.00249416,120]
[354357823,1740441068458,-150.1,0.00249416,120]
[354357824,1740441068468,-1162.7,0.0025695,110]
[354357825,1740441068477,-1139.7364416,0.0026,15]
[354357826,1740441068486,-151.0,0.00273973,120]
[354357827,1740441068495,-151.0,0.00273973,120]
[354357828,1740441068504,-151.0,0.00273973,120]
[354357829,1740441068514,-151.0,0.00273973,120]
[354357830,1740441068523,-151.0,0.00273973,120]
[354357831,1740441068532,-151.0,0.00273973,120]
[354357832,1740441068542,-151.0,0.00273973,120]
[354357833,1740441068551,-151.0,0.00273973,120]
[354357834,1740441068561,-151.0,0.00273973,120]
[354357835,1740441068570,-151.0,0.00273973,120]
[354357836,1740441068581,-252.49577,0.00273973,120]
[354357837,1740441068590,-259.046237,0.00273973,120]
[354357838,1740441068599,-259.046237,0.00273973,120]
[354357839,1740441068608,-259.046237,0.00273973,120]
[354357840,1740441068617,-259.046237,0.00273973,120]
[354357841,1740441068627,-259.046237,0.00273973,120]
[354357842,1740441068636,-259.046237,0.00273973,120]
[354357843,1740441068645,-259.046237,0.00273973,120]
[354357844,1740441068655,-259.046237,0.00273973,120]
[354357845,1740441068664,-259.046237,0.00273973,120]
[354357846,1740441068674,-259.046237,0.00273973,120]
[354357847,1740441068683,-259.046237,0.00273973,120]
[354357848,1740441068692,-259.046237,0.00273973,120]
[354357849,1740441068702,-259.046237,0.00273973,120]
[354357850,1740441068827,-259.046237,0.00273973,120]
[354357851,1740441068840,-259.046237,0.00273973,120]
[354357852,1740441068851,-259.046237,0.00273973,120]
[354357853,1740441068861,-259.046237,0.00273973,120]
[354357854,1740441068872,-259.046237,0.00273973,120]
[354357855,1740441068883,-259.046237,0.00273973,120]
[354357856,1740441068892,-259.046242,0.00273973,120]